[Event "NED Team Cup 2018"]
[Site "Apeldoorn"]
[Date "2018.05.10"]
[Round "2"]
[White "Meegen, Ruud van"]
[Black "Zwirs, Nico"]
[Result "0-1"]
[ECO "A41"]
[WhiteElo "2241"]
[BlackElo "2379"]
[Annotator "NA"]
[PlyCount "148"]
[EventDate "2018.??.??"]
[EventCountry "NED"]
[SourceTitle "playchess.com"]
[Source "ChessBase"]
[SourceQuality "1"]
[TimeControl "6600+5"]

1. d4 {[%emt 0:00:03]} d6 {[%emt 0:01:04]} 2. c4 {[%emt 0:00:21]} e5 {[%emt 0:00:08]} 3. d5 {[%emt 0:00:31]} Be7 {[%emt 0:00:47]} 4. Nc3 {[%emt 0:00:42]} Bg5 {[%emt 0:00:27]} 5. e4 {[%emt 0:00:52] LiveBook: 4 Games} a5 {[%emt 0:02:01]} 6. a3 {[%emt 0:08:02]} Bd7 {[%emt 0:04:14]} 7. b3 {[%emt 0:00:52]} (7. Bxg5 $14 Qxg5 8. c5) 7... Bxc1 {[%emt 0:05:51]} 8. Rxc1 {[%emt 0:00:08]} Na6 {[%emt 0:00:05]} 9. Bd3 {[%emt 0:06:29]} Qg5 {[%emt 0:06:23]} 10. g3 {[%emt 0:06:01]} Ne7 {[%emt 0:06:02]} 11. Nf3 {[%emt 0:04:53]} Qh6 {[%emt 0:03:58]} 12. Qd2 {[%emt 0:01:06]} Qh5 {[%emt 0:05:42]} 13. Be2 {[%emt 0:01:03]} Bg4 {[%emt 0:04:37]} 14. Qg5 {[%emt 0:07:34]} Qxg5 {[%emt 0:16:27]} 15. Nxg5 {[%emt 0:00:08]} Bd7 {[%emt 0:01:36]} 16. O-O {[%emt 0:05:37]} Nc5 {[%emt 0:03:16]} 17. Rb1 {[%emt 0:08:43]} h6 {[%emt 0:13:08]} 18. Nf3 {[%emt 0:00:23]} f5 {[%emt 0:00:05]} 19. Nd2 {[%emt 0:00:41]} Nxe4 {[%emt 0:04:07]} 20. Ndxe4 {[%emt 0:00:34]} fxe4 {[%emt 0:00:04]} 21. Nxe4 {[%emt 0:01:09]} Bf5 {[%emt 0:00:34]} 22. Bd3 {[%emt 0:05:53]} O-O {[%emt 0:03:23]} 23. Kg2 {[%emt 0:01:01]} b6 {[%emt 0:01:19]} 24. Rbd1 {[%emt 0:00:48]} Bxe4+ {[%emt 0:07:54]} 25. Bxe4 {[%emt 0:00:06]} Nf5 {[%emt 0:00:09]} 26. Bxf5 {[%emt 0:01:58]} Rxf5 {[%emt 0:00:01]} 27. Rd3 {[%emt 0:00:50]} Raf8 {[%emt 0:00:49]} 28. Re3 {[%emt 0:00:24]} g5 {[%emt 0:00:18]} 29. h3 {[%emt 0:06:01]} Kg7 {[%emt 0:00:04]} 30. f3 {[%emt 0:01:51]} h5 {[%emt 0:00:17]} 31. Re4 {[%emt 0:06:13]} Kg6 {[%emt 0:00:48]} 32. Rf2 {[%emt 0:00:34]} R5f7 {[%emt 0:02:28]} 33. Rf1 {[%emt 0:01:40]} Kf5 {[%emt 0:02:43]} 34. Kf2 {[%emt 0:05:12]} Kf6 {[%emt 0:01:54]} 35. Rc1 {[%emt 0:01:59]} Ke7 {[%emt 0:01:03]} 36. Rc3 {[%emt 0:00:08]} Rh8 {[%emt 0:02:02]} 37. Ke2 {[%emt 0:02:13]} h4 {[%emt 0:00:19]} 38. g4 {[%emt 0:00:08]} Kd7 {[%emt 0:00:15]} 39. Rd3 {[%emt 0:02:01]} Rhf8 {[%emt 0:00:08]} 40. Rc3 {[%emt 0:00:36]} c6 {[%emt 0:01:33]} 41. Ree3 {[%emt 0:00:56]} Rf4 {[%emt 0:00:26]} 42. Re4 {[%emt 0:00:06]} Kc7 {[%emt 0:02:02]} (42... cxd5 $17 43. cxd5 b5) 43. Rd3 {[%emt 0:00:21]} Rxe4+ {[%emt 0:00:22]} 44. fxe4 {[%emt 0:00:06]} Rf4 {[%emt 0:00:01]} 45. Re3 {[%emt 0:00:24]} Kb7 {[%emt 0:00:57]} 46. Ke1 {[%emt 0:02:28]} b5 {[%emt 0:00:30]} 47. Kd2 {[%emt 0:08:11]} Kb6 {[%emt 0:00:15]} 48. Kc3 {[%emt 0:02:26]} bxc4 {[%emt 0:00:00]} 49. Kxc4 {[%emt 0:00:04]} Rf1 {[%emt 0:00:01]} 50. Rc3 {[%emt 0:00:39]} Rd1 {[%emt 0:00:14]} 51. Rd3 {[%emt 0:01:44]} Rc1+ {[%emt 0:00:01]} 52. Rc3 {[%emt 0:00:02]} Rd1 {[%emt 0:00:01]} 53. Rd3 {[%emt 0:00:01] [#]} Re1 $19 {[%emt 0:00:01]} 54. dxc6 {[%emt 0:00:39]} Kxc6 {[%emt 0:00:01]} 55. Rc3 {[%emt 0:00:12]} Rxe4+ {[%emt 0:00:26]} 56. Kd3+ {[%emt 0:00:01]} Kd5 {[%emt 0:00:00]} 57. Rc8 {[%emt 0:00:03]} Rf4 {[%emt 0:00:05]} 58. Ra8 {[%emt 0:00:17]} Rf3+ {[%emt 0:00:01]} 59. Kc2 {[%emt 0:00:01]} Kd4 {[%emt 0:00:14]} 60. Rxa5 {[%emt 0:00:03]} Rf2+ {[%emt 0:00:01]} 61. Kb1 {[%emt 0:00:04]} e4 {[%emt 0:00:08]} 62. Rxg5 {[%emt 0:00:09]} e3 {[%emt 0:00:08]} 63. Kc1 {[%emt 0:00:20]} Ra2 {[%emt 0:00:37]} 64. Kd1 {[%emt 0:00:15]} Rxa3 {[%emt 0:00:03]} 65. Rg6 {[%emt 0:00:05]} d5 {[%emt 0:00:02]} 66. Rd6 {[%emt 0:00:13]} Rxb3 {[%emt 0:00:21]} 67. g5 {[%emt 0:00:01]} Rb1+ {[%emt 0:00:02]} 68. Ke2 {[%emt 0:00:02]} Rg1 {[%emt 0:00:01]} 69. g6 {[%emt 0:00:03]} Rg3 {[%emt 0:00:04]} 70. Re6 {[%emt 0:00:10]} Rg2+ {[%emt 0:00:12]} 71. Kf1 {[%emt 0:00:12]} Rg5 {[%emt 0:00:12]} 72. Ke2 {[%emt 0:00:04]} Rg3 73. g7 {[%emt 0:00:16]} Rxg7 {[%emt 0:00:02]} 74. Rxe3 {[%emt 0:00:01]} Rg2+ {[%emt 0:00:01]} 0-1

[Event "NED Team Cup 2018"]
[Site "Apeldoorn"]
[Date "2018.05.10"]
[Round "2"]
[White "Bos, Jokim van den"]
[Black "Wessel, Rudy van"]
[Result "0-1"]
[ECO "B94"]
[WhiteElo "1936"]
[BlackElo "2402"]
[Annotator "ChessBase"]
[PlyCount "38"]
[EventDate "2018.??.??"]
[EventCountry "NED"]
[SourceTitle "playchess.com"]
[Source "ChessBase"]
[SourceQuality "1"]
[TimeControl "6600+5"]

1. e4 {[%emt 0:00:18]} c5 {[%emt 0:00:23]} 2. Nf3 {[%emt 0:00:42]} d6 {[%emt 0:01:49]} 3. Nc3 {[%emt 0:00:24]} a6 {[%emt 0:00:32]} 4. d4 {[%emt 0:00:09]} cxd4 {[%emt 0:00:06]} 5. Nxd4 {[%emt 0:00:05]} Nf6 {[%emt 0:00:08]} 6. Bg5 {[%emt 0:00:06]} Nbd7 {[%emt 0:00:08]} 7. f4 {[%emt 0:00:36]} h6 {[%emt 0:04:11]} 8. Bh4 {[%emt 0:00:37]} e5 {[%emt 0:01:20]} 9. fxe5 {[%emt 0:04:48]} dxe5 {[%emt 0:01:00]} 10. Nf5 {[%emt 0:00:20]} Qb6 {[%emt 0:06:03]} 11. Qd2 {[%emt 0:15:42]} Qxb2 {[%emt 0:09:54]} 12. Rb1 {[%emt 0:01:14]} Qa3 {[%emt 0:00:12]} 13. Rb3 {[%emt 0:04:48]} Qa5 {[%emt 0:08:39]} 14. Bxf6 {[%emt 0:15:36]} Nxf6 {[%emt 0:01:55]} 15. Nd6+ {[%emt 0:01:12]} Bxd6 {[%emt 0:03:25]} 16. Qxd6 {[%emt 0:00:11]} Nxe4 {[%emt 0:02:38]} 17. Bb5+ {[%emt 0:11:08]} axb5 {[%emt 0:00:57]} 18. Qxe5+ {[%emt 0:00:06]} Be6 {[%emt 0:00:04]} 19. Qxe4 {[%emt 0:01:04]} O-O {[%emt 0:00:42]} 0-1